[Event "*** Titled Tuesday Blitz"]
[Site "Chess.com"]
[Date "2020.04.21"]
[Round "8"]
[White "Crazy_girl99"]
[Black "kingofkolkata"]
[Result "1-0"]
[WhiteElo "2416"]
[BlackElo "2249"]
[TimeControl "180+1"]
[EndTime "11:38:10 PDT"]
[Termination "Crazy_girl99 won by checkmate"]

1. Nf3 {[%clk 0:03:00.9]} 1... d5 {[%clk 0:02:59.9]} 2. g3 {[%clk 0:02:55.3]}
2... c6 {[%clk 0:02:58.3]} 3. Bg2 {[%clk 0:02:54.6]} 3... Bf5 {[%clk 0:02:58.1]}
4. d4 {[%clk 0:02:54.2]} 4... Nd7 {[%clk 0:02:57.6]} 5. O-O {[%clk 0:02:54]}
5... Ngf6 {[%clk 0:02:57.2]} 6. c4 {[%clk 0:02:54.2]} 6... e6 {[%clk 0:02:57.1]}
7. cxd5 {[%clk 0:02:53.8]} 7... exd5 {[%clk 0:02:56.9]} 8. Nc3 {[%clk 0:02:51]}
8... Be7 {[%clk 0:02:56.5]} 9. Ne5 {[%clk 0:02:42.8]} 9... O-O {[%clk
0:02:55.5]} 10. Bf4 {[%clk 0:02:41.8]} 10... Re8 {[%clk 0:02:52.7]} 11. Re1
{[%clk 0:02:40.9]} 11... Nh5 {[%clk 0:02:52.3]} 12. Be3 {[%clk 0:02:28.2]} 12...
Nhf6 {[%clk 0:02:51.7]} 13. h3 {[%clk 0:02:25.4]} 13... Bd6 {[%clk 0:02:43.7]}
14. f4 {[%clk 0:02:14.8]} 14... Qb6 {[%clk 0:02:30.3]} 15. Qd2 {[%clk
0:02:03.6]} 15... Rad8 {[%clk 0:02:27.3]} 16. g4 {[%clk 0:02:00.2]} 16... Be4
{[%clk 0:02:27.2]} 17. Bf3 {[%clk 0:01:55]} 17... c5 {[%clk 0:02:15.3]} 18. g5
{[%clk 0:01:38.9]} 18... Bxe5 {[%clk 0:01:53.1]} 19. fxe5 {[%clk 0:01:34]} 19...
Nxe5 {[%clk 0:01:48]} 20. dxe5 {[%clk 0:01:29.6]} 20... Bxf3 {[%clk 0:01:38.9]}
21. exf3 {[%clk 0:01:13.6]} 21... d4 {[%clk 0:01:39.1]} 22. gxf6 {[%clk
0:01:01.9]} 22... dxe3 {[%clk 0:01:33.9]} 23. Qg2 {[%clk 0:01:00]} 23... g6
{[%clk 0:01:27.4]} 24. Rxe3 {[%clk 0:00:57.5]} 24... c4 {[%clk 0:01:23.4]} 25.
Qf2 {[%clk 0:00:57.3]} 25... Qd4 {[%clk 0:01:00.7]} 26. Rae1 {[%clk 0:00:55.5]}
26... h5 {[%clk 0:00:52.7]} 27. Re4 {[%clk 0:00:53.7]} 27... Qxf2+ {[%clk
0:00:50]} 28. Kxf2 {[%clk 0:00:53.2]} 28... Rd2+ {[%clk 0:00:40.4]} 29. R1e2
{[%clk 0:00:53.1]} 29... Red8 {[%clk 0:00:35.7]} 30. Rxc4 {[%clk 0:00:51.3]}
30... Rxe2+ {[%clk 0:00:35.9]} 31. Kxe2 {[%clk 0:00:51.9]} 31... Kh7 {[%clk
0:00:33.9]} 32. h4 {[%clk 0:00:52.1]} 32... b5 {[%clk 0:00:32.2]} 33. Rc7 {[%clk
0:00:51.1]} 33... Kh6 {[%clk 0:00:27.2]} 34. Rxf7 {[%clk 0:00:47.7]} 34... b4
{[%clk 0:00:27.6]} 35. Ne4 {[%clk 0:00:47]} 35... b3 {[%clk 0:00:20.6]} 36. axb3
{[%clk 0:00:46]} 36... a5 {[%clk 0:00:20]} 37. Ng5 {[%clk 0:00:45.9]} 37... Rh8
{[%clk 0:00:19.6]} 38. Rg7 {[%clk 0:00:45.5]} 38... a4 {[%clk 0:00:18]} 39. Nf7#
{[%clk 0:00:45.5]} 1-0

[Event "*** Titled Tuesday Blitz"]
[Site "Chess.com"]
[Date "2020.04.21"]
[Round "8"]
[White "ChessicallyInclined"]
[Black "Caterpiller35"]
[Result "1-0"]
[WhiteElo "2582"]
[BlackElo "2355"]
[TimeControl "180+1"]
[EndTime "11:38:13 PDT"]
[Termination "ChessicallyInclined won on time"]

1. d4 {[%clk 0:03:00.9]} 1... Nf6 {[%clk 0:02:59.9]} 2. c4 {[%clk 0:03:00.3]}
2... e6 {[%clk 0:03:00.2]} 3. Nc3 {[%clk 0:03:00]} 3... Bb4 {[%clk 0:03:00.3]}
4. e3 {[%clk 0:02:59.1]} 4... Ne4 {[%clk 0:02:59.8]} 5. Qc2 {[%clk 0:02:58.3]}
5... f5 {[%clk 0:02:59.7]} 6. Bd3 {[%clk 0:02:57.9]} 6... O-O {[%clk 0:02:59.9]}
7. Ne2 {[%clk 0:02:58]} 7... d5 {[%clk 0:02:58.4]} 8. f3 {[%clk 0:02:56.6]} 8...
Nxc3 {[%clk 0:02:53.9]} 9. bxc3 {[%clk 0:02:57.5]} 9... Bd6 {[%clk 0:02:53]} 10.
cxd5 {[%clk 0:02:54.2]} 10... exd5 {[%clk 0:02:53]} 11. c4 {[%clk 0:02:54.4]}
11... dxc4 {[%clk 0:02:41.7]} 12. Bxc4+ {[%clk 0:02:52.6]} 12... Kh8 {[%clk
0:02:42.3]} 13. O-O {[%clk 0:02:52.2]} 13... b6 {[%clk 0:02:29.7]} 14. Bb2
{[%clk 0:02:45.7]} 14... Bb7 {[%clk 0:02:26.8]} 15. e4 {[%clk 0:02:45.9]} 15...
Nc6 {[%clk 0:01:45.2]} 16. e5 {[%clk 0:02:43.3]} 16... Nb4 {[%clk 0:01:26.4]}
17. Qb3 {[%clk 0:02:31]} 17... Be7 {[%clk 0:01:23.1]} 18. Nf4 {[%clk 0:02:30]}
18... a5 {[%clk 0:01:00.8]} 19. a3 {[%clk 0:02:27.8]} 19... Nc6 {[%clk
0:00:58.3]} 20. d5 {[%clk 0:02:19.4]} 20... a4 {[%clk 0:00:53.9]} 21. Qd3 {[%clk
0:02:12.5]} 21... Bc5+ {[%clk 0:00:50.6]} 22. Kh1 {[%clk 0:02:09.2]} 22... Na5
{[%clk 0:00:44.5]} 23. Ba2 {[%clk 0:02:04.9]} 23... Qh4 {[%clk 0:00:37.6]} 24.
g3 {[%clk 0:01:53.1]} 24... Qh6 {[%clk 0:00:36.8]} 25. Rfe1 {[%clk 0:01:44.3]}
25... Rad8 {[%clk 0:00:32.7]} 26. Rad1 {[%clk 0:01:41.9]} 26... Rfe8 {[%clk
0:00:27.9]} 27. Qxf5 {[%clk 0:01:33.8]} 27... Rf8 {[%clk 0:00:23.8]} 28. Qe4
{[%clk 0:01:32.3]} 28... Nb3 {[%clk 0:00:21.3]} 29. Bxb3 {[%clk 0:01:31]} 29...
axb3 {[%clk 0:00:21.4]} 30. Bc1 {[%clk 0:01:26.3]} 30... Qg5 {[%clk 0:00:03.1]}
31. Ne6 {[%clk 0:01:23]} 31... Qh5 {[%clk 0:00:02.1]} 32. g4 {[%clk 0:00:54.3]}
32... Qh3 {[%clk 0:00:01.7]} 33. Ng5 {[%clk 0:00:47.4]} 1-0

[Event "*** Titled Tuesday Blitz"]
[Site "Chess.com"]
[Date "2020.04.21"]
[Round "8"]
[White "Fandorine"]
[Black "Pultis"]
[Result "1-0"]
[WhiteElo "2891"]
[BlackElo "2742"]
[TimeControl "180+1"]
[EndTime "11:38:16 PDT"]
[Termination "Fandorine won by resignation"]

1. e4 {[%clk 0:03:00.9]} 1... c6 {[%clk 0:03:00]} 2. Nf3 {[%clk 0:02:59.5]} 2...
d5 {[%clk 0:03:00.3]} 3. d3 {[%clk 0:03:00.4]} 3... Nf6 {[%clk 0:02:59.4]} 4. e5
{[%clk 0:02:58]} 4... Nfd7 {[%clk 0:02:58.8]} 5. d4 {[%clk 0:02:58.6]} 5... e6
{[%clk 0:02:58.4]} 6. c4 {[%clk 0:02:53.7]} 6... dxc4 {[%clk 0:02:57.7]} 7. Bxc4
{[%clk 0:02:53.3]} 7... Nb6 {[%clk 0:02:58.2]} 8. Bd3 {[%clk 0:02:53.7]} 8...
Be7 {[%clk 0:02:52.5]} 9. O-O {[%clk 0:02:53.3]} 9... Nd5 {[%clk 0:02:51.2]} 10.
Qe2 {[%clk 0:02:50.9]} 10... Nd7 {[%clk 0:02:48.3]} 11. Rd1 {[%clk 0:02:51.2]}
11... O-O {[%clk 0:02:06]} 12. Nc3 {[%clk 0:02:50.5]} 12... Re8 {[%clk 0:01:57]}
13. Bd2 {[%clk 0:02:49.4]} 13... Nf8 {[%clk 0:01:56.7]} 14. Rac1 {[%clk
0:02:45.7]} 14... Ng6 {[%clk 0:01:51.3]} 15. Bb1 {[%clk 0:02:45.5]} 15... b6
{[%clk 0:01:45.8]} 16. g3 {[%clk 0:02:26.6]} 16... Bb7 {[%clk 0:01:44]} 17. Ne4
{[%clk 0:02:17.7]} 17... Rc8 {[%clk 0:01:41.6]} 18. h4 {[%clk 0:02:18]} 18... c5
{[%clk 0:01:41.1]} 19. h5 {[%clk 0:02:18.4]} 19... Nf8 {[%clk 0:01:40.5]} 20.
dxc5 {[%clk 0:02:18.5]} 20... bxc5 {[%clk 0:01:40.4]} 21. h6 {[%clk 0:02:18.9]}
21... g6 {[%clk 0:01:31.9]} 22. Bg5 {[%clk 0:02:15.1]} 22... Bxg5 {[%clk
0:01:29.3]} 23. Nfxg5 {[%clk 0:02:15.8]} 23... Nd7 {[%clk 0:01:28.5]} 24. Nxf7
{[%clk 0:02:02.3]} 24... Kxf7 {[%clk 0:01:24.8]} 25. Nd6+ {[%clk 0:02:02.7]}
25... Kg8 {[%clk 0:01:25.1]} 26. Nxb7 {[%clk 0:02:03.2]} 26... Qg5 {[%clk
0:01:24.3]} 27. Nd6 {[%clk 0:01:52.6]} 27... Nxe5 {[%clk 0:01:22.8]} 28. Nxc8
{[%clk 0:01:38]} 28... Rf8 {[%clk 0:01:04.4]} 29. Ne7+ {[%clk 0:00:55.1]} 29...
Nxe7 {[%clk 0:01:01.2]} 30. Be4 {[%clk 0:00:53]} 30... Nf5 {[%clk 0:00:50.2]}
31. Bxf5 {[%clk 0:00:38.2]} 31... Rxf5 {[%clk 0:00:46.4]} 32. Rxc5 {[%clk
0:00:27.9]} 32... Nf3+ {[%clk 0:00:38.8]} 33. Qxf3 {[%clk 0:00:26.3]} 33... Rxc5
{[%clk 0:00:32.6]} 34. Qa8+ {[%clk 0:00:26.1]} 34... Kf7 {[%clk 0:00:31.5]} 35.
Rd7+ {[%clk 0:00:24.3]} 35... Kf6 {[%clk 0:00:31.7]} 36. Qf8+ {[%clk 0:00:24.5]}
36... Ke5 {[%clk 0:00:31]} 37. Qxc5+ {[%clk 0:00:24.3]} 1-0

[Event "*** Titled Tuesday Blitz"]
[Site "Chess.com"]
[Date "2020.04.21"]
[Round "8"]
[White "D0wnpour"]
[Black "AttilaTurzo"]
[Result "0-1"]
[WhiteElo "2591"]
[BlackElo "2475"]
[TimeControl "180+1"]
[EndTime "11:38:16 PDT"]
[Termination "AttilaTurzo won by checkmate"]

1. d4 {[%clk 0:03:00.9]} 1... d5 {[%clk 0:02:59.8]} 2. c4 {[%clk 0:03:00.6]}
2... c6 {[%clk 0:03:00.7]} 3. Nf3 {[%clk 0:03:00]} 3... Nf6 {[%clk 0:03:00.8]}
4. Qb3 {[%clk 0:02:58.7]} 4... e6 {[%clk 0:02:56.8]} 5. g3 {[%clk 0:02:47.8]}
5... dxc4 {[%clk 0:02:49.5]} 6. Qxc4 {[%clk 0:02:47.4]} 6... b5 {[%clk
0:02:49.2]} 7. Qc2 {[%clk 0:02:46.4]} 7... Bb7 {[%clk 0:02:49]} 8. Bg2 {[%clk
0:02:46.8]} 8... Nbd7 {[%clk 0:02:49.2]} 9. O-O {[%clk 0:02:46]} 9... c5 {[%clk
0:02:49.5]} 10. Bg5 {[%clk 0:01:41.5]} 10... Rc8 {[%clk 0:02:46]} 11. Qb3 {[%clk
0:01:37.6]} 11... Qb6 {[%clk 0:02:42.5]} 12. Nc3 {[%clk 0:01:35]} 12... a6
{[%clk 0:02:27.6]} 13. Bxf6 {[%clk 0:01:18.9]} 13... Nxf6 {[%clk 0:02:25.9]} 14.
Na4 {[%clk 0:01:17.8]} 14... Qc7 {[%clk 0:02:11.2]} 15. Nxc5 {[%clk 0:01:16.7]}
15... Bxc5 {[%clk 0:02:10.1]} 16. Rfc1 {[%clk 0:00:56.3]} 16... Qe7 {[%clk
0:02:08.8]} 17. dxc5 {[%clk 0:00:53]} 17... Rxc5 {[%clk 0:02:09.7]} 18. a4
{[%clk 0:00:52]} 18... O-O {[%clk 0:02:04.5]} 19. Rxc5 {[%clk 0:00:49.5]} 19...
Qxc5 {[%clk 0:02:05.4]} 20. axb5 {[%clk 0:00:49.9]} 20... axb5 {[%clk
0:02:03.1]} 21. e3 {[%clk 0:00:42.9]} 21... Bd5 {[%clk 0:01:52]} 22. Qd1 {[%clk
0:00:31]} 22... Rc8 {[%clk 0:01:47.6]} 23. Nd4 {[%clk 0:00:29]} 23... h6 {[%clk
0:01:39.2]} 24. h3 {[%clk 0:00:28.4]} 24... b4 {[%clk 0:01:36.5]} 25. Qa4 {[%clk
0:00:24.5]} 25... Ne4 {[%clk 0:01:32.4]} 26. Qd7 {[%clk 0:00:20.5]} 26... Nf6
{[%clk 0:01:27.2]} 27. Qa7 {[%clk 0:00:16.8]} 27... Bxg2 {[%clk 0:01:13.6]} 28.
Kxg2 {[%clk 0:00:15.9]} 28... Qd5+ {[%clk 0:01:13.5]} 29. Kh2 {[%clk 0:00:15.3]}
29... Ne4 {[%clk 0:01:13.7]} 30. Kg1 {[%clk 0:00:11.3]} 30... Ng5 {[%clk
0:01:08.8]} 31. Qa6 {[%clk 0:00:06.1]} 31... Rf8 {[%clk 0:00:55.4]} 32. Ra5
{[%clk 0:00:04.4]} 32... Nxh3+ {[%clk 0:00:45.9]} 33. Kh2 {[%clk 0:00:04]} 33...
Qe4 {[%clk 0:00:45.7]} 34. Kxh3 {[%clk 0:00:03.9]} 34... Qh1+ {[%clk 0:00:45.7]}
35. Kg4 {[%clk 0:00:04.2]} 35... f5+ {[%clk 0:00:45.3]} 36. Kf4 {[%clk
0:00:03.7]} 36... Qe4# {[%clk 0:00:44.4]} 0-1

[Event "*** Titled Tuesday Blitz"]
[Site "Chess.com"]
[Date "2020.04.21"]
[Round "8"]
[White "Shivagami"]
[Black "LuisFSiles"]
[Result "0-1"]
[WhiteElo "2152"]
[BlackElo "2271"]
[TimeControl "180+1"]
[EndTime "11:38:18 PDT"]
[Termination "LuisFSiles won by resignation"]

1. d4 {[%clk 0:03:00.9]} 1... Nf6 {[%clk 0:02:57.8]} 2. Bf4 {[%clk 0:02:59.2]}
2... g6 {[%clk 0:02:55.1]} 3. e3 {[%clk 0:02:58.9]} 3... Bg7 {[%clk 0:02:55.2]}
4. Nf3 {[%clk 0:02:58.6]} 4... O-O {[%clk 0:02:54.9]} 5. Be2 {[%clk 0:02:58.8]}
5... d6 {[%clk 0:02:54.6]} 6. O-O {[%clk 0:02:58.9]} 6... c5 {[%clk 0:02:54.4]}
7. c3 {[%clk 0:02:58.5]} 7... Be6 {[%clk 0:02:44.7]} 8. Nbd2 {[%clk 0:02:55.8]}
8... Nc6 {[%clk 0:02:40.6]} 9. e4 {[%clk 0:02:50.9]} 9... cxd4 {[%clk
0:02:30.4]} 10. cxd4 {[%clk 0:02:50.7]} 10... d5 {[%clk 0:02:27.6]} 11. e5
{[%clk 0:02:50.1]} 11... Ne4 {[%clk 0:02:27.7]} 12. Bd3 {[%clk 0:02:15.3]} 12...
Nxd2 {[%clk 0:02:06.1]} 13. Qxd2 {[%clk 0:02:14]} 13... Qb6 {[%clk 0:02:03.5]}
14. Be3 {[%clk 0:01:42.5]} 14... Bg4 {[%clk 0:01:56.4]} 15. Be2 {[%clk
0:01:33.7]} 15... f6 {[%clk 0:01:54]} 16. exf6 {[%clk 0:01:31.3]} 16... Bxf6
{[%clk 0:01:53.6]} 17. Ne5 {[%clk 0:01:27.1]} 17... Bxe2 {[%clk 0:01:44.4]} 18.
Nd7 {[%clk 0:01:16.5]} 18... Qc7 {[%clk 0:01:39.2]} 19. Nxf6+ {[%clk 0:00:47.9]}
19... exf6 {[%clk 0:01:38.9]} 20. Qxe2 {[%clk 0:00:48.3]} 20... Rae8 {[%clk
0:01:25.2]} 21. Qf3 {[%clk 0:00:47.6]} 21... Re4 {[%clk 0:01:23.7]} 22. Rac1
{[%clk 0:00:45.6]} 22... Qd7 {[%clk 0:01:11.5]} 23. a3 {[%clk 0:00:27.9]} 23...
f5 {[%clk 0:00:59.1]} 24. Rfd1 {[%clk 0:00:21.7]} 24... f4 {[%clk 0:00:54.9]}
25. Bd2 {[%clk 0:00:20.1]} 25... Nxd4 {[%clk 0:00:54.4]} 26. Qd3 {[%clk
0:00:18.9]} 26... Ne2+ {[%clk 0:00:46.9]} 27. Kh1 {[%clk 0:00:18.7]} 27... Nxc1
{[%clk 0:00:45.9]} 28. Rxc1 {[%clk 0:00:15.7]} 28... Rfe8 {[%clk 0:00:39.3]} 29.
Bc3 {[%clk 0:00:12.5]} 29... d4 {[%clk 0:00:38.3]} 30. Qc4+ {[%clk 0:00:12.9]}
30... Qf7 {[%clk 0:00:36.2]} 0-1

[Event "*** Titled Tuesday Blitz"]
[Site "Chess.com"]
[Date "2020.04.21"]
[Round "8"]
[White "Trickov"]
[Black "WiktoriaPOL"]
[Result "1-0"]
[WhiteElo "2271"]
[BlackElo "2031"]
[TimeControl "180+1"]
[EndTime "11:38:18 PDT"]
[Termination "Trickov won on time"]

1. d4 {[%clk 0:03:00.9]} 1... Nf6 {[%clk 0:02:59.2]} 2. Nf3 {[%clk 0:03:00.5]}
2... g6 {[%clk 0:02:58.9]} 3. c4 {[%clk 0:02:59.9]} 3... Bg7 {[%clk 0:02:58.5]}
4. g3 {[%clk 0:03:00.5]} 4... O-O {[%clk 0:02:57.5]} 5. Bg2 {[%clk 0:03:01]}
5... d6 {[%clk 0:02:56.8]} 6. Nc3 {[%clk 0:03:00.6]} 6... Nbd7 {[%clk 0:02:56]}
7. Qc2 {[%clk 0:03:00.7]} 7... e5 {[%clk 0:02:55.7]} 8. O-O {[%clk 0:03:00.1]}
8... Ne8 {[%clk 0:02:53.6]} 9. Rd1 {[%clk 0:02:59.5]} 9... f5 {[%clk 0:02:51.2]}
10. e4 {[%clk 0:02:58.9]} 10... f4 {[%clk 0:02:48.3]} 11. dxe5 {[%clk
0:02:55.9]} 11... dxe5 {[%clk 0:02:46.7]} 12. b3 {[%clk 0:02:50]} 12... c6
{[%clk 0:02:41.2]} 13. Ba3 {[%clk 0:02:48.9]} 13... Rf7 {[%clk 0:02:37.2]} 14.
Na4 {[%clk 0:02:39]} 14... b5 {[%clk 0:02:19.1]} 15. Nc5 {[%clk 0:02:29.4]}
15... Qc7 {[%clk 0:02:00.6]} 16. Nxd7 {[%clk 0:02:23.8]} 16... Bxd7 {[%clk
0:01:55.3]} 17. cxb5 {[%clk 0:02:22.5]} 17... fxg3 {[%clk 0:01:44.3]} 18. hxg3
{[%clk 0:02:19.3]} 18... Bg4 {[%clk 0:01:43.5]} 19. Rd3 {[%clk 0:02:17.8]} 19...
cxb5 {[%clk 0:01:36.3]} 20. Rc1 {[%clk 0:02:09.9]} 20... Qxc2 {[%clk 0:01:32.2]}
21. Rxc2 {[%clk 0:02:09.5]} 21... Bxf3 {[%clk 0:01:23.7]} 22. Bxf3 {[%clk
0:02:08.1]} 22... Nc7 {[%clk 0:01:18.8]} 23. Bg4 {[%clk 0:02:01.4]} 23... h5
{[%clk 0:01:12.7]} 24. Bh3 {[%clk 0:02:00.6]} 24... a5 {[%clk 0:00:57.3]} 25.
Bd6 {[%clk 0:01:58.2]} 25... Rd8 {[%clk 0:00:49.1]} 26. Rcd2 {[%clk 0:01:55.6]}
26... Kh7 {[%clk 0:00:37.2]} 27. Bc5 {[%clk 0:01:37.1]} 27... Rxd3 {[%clk
0:00:33.8]} 28. Rxd3 {[%clk 0:01:37.1]} 28... b4 {[%clk 0:00:26.7]} 29. Bb6
{[%clk 0:01:36.2]} 29... Nb5 {[%clk 0:00:14.3]} 30. Bxa5 {[%clk 0:01:33.1]}
30... Ra7 {[%clk 0:00:12.6]} 31. Bxb4 {[%clk 0:01:29.9]} 31... Rxa2 {[%clk
0:00:11.2]} 32. Rd7 {[%clk 0:01:28.6]} 32... Kh6 {[%clk 0:00:08.2]} 33. Bd2+
{[%clk 0:01:14.2]} 33... Kh7 {[%clk 0:00:06.5]} 34. Bg5 {[%clk 0:01:11.8]} 34...
Kh8 {[%clk 0:00:03.7]} 35. Be6 {[%clk 0:01:08.1]} 35... Nd4 {[%clk 0:00:02.7]}
36. Rd8+ {[%clk 0:01:03.7]} 36... Bf8 {[%clk 0:00:02.3]} 37. Rxf8+ {[%clk
0:01:01]} 37... Kg7 {[%clk 0:00:02.5]} 38. Rf7+ {[%clk 0:00:56.7]} 38... Kg8
{[%clk 0:00:02.7]} 39. Bd5 {[%clk 0:00:56.2]} 1-0

[Event "*** Titled Tuesday Blitz"]
[Site "Chess.com"]
[Date "2020.04.21"]
[Round "8"]
[White "Rud_Makarian"]
[Black "crescentmoon2411"]
[Result "1-0"]
[WhiteElo "2662"]
[BlackElo "2761"]
[TimeControl "180+1"]
[EndTime "11:38:19 PDT"]
[Termination "Rud_Makarian won on time"]

1. d4 {[%clk 0:03:00.8]} 1... Nf6 {[%clk 0:02:59.8]} 2. c4 {[%clk 0:03:01.5]}
2... e6 {[%clk 0:03:00.3]} 3. Nc3 {[%clk 0:03:01.8]} 3... Bb4 {[%clk 0:02:58.7]}
4. e3 {[%clk 0:03:01.6]} 4... O-O {[%clk 0:02:56.7]} 5. Bd2 {[%clk 0:02:55.4]}
5... d5 {[%clk 0:02:21.9]} 6. Nf3 {[%clk 0:02:54.9]} 6... b6 {[%clk 0:02:12.2]}
7. cxd5 {[%clk 0:02:53.7]} 7... exd5 {[%clk 0:02:10]} 8. Bd3 {[%clk 0:02:51.9]}
8... Bb7 {[%clk 0:02:05]} 9. O-O {[%clk 0:02:49]} 9... Bd6 {[%clk 0:01:58.8]}
10. Rc1 {[%clk 0:02:23.7]} 10... a6 {[%clk 0:01:49.9]} 11. Ne5 {[%clk
0:02:20.3]} 11... c5 {[%clk 0:01:46.8]} 12. f4 {[%clk 0:02:20.9]} 12... Nc6
{[%clk 0:01:37.4]} 13. Ng4 {[%clk 0:02:21.5]} 13... Nb4 {[%clk 0:01:17.1]} 14.
Bb1 {[%clk 0:02:17.6]} 14... cxd4 {[%clk 0:01:16.2]} 15. exd4 {[%clk 0:02:12.8]}
15... Nc6 {[%clk 0:01:01.8]} 16. Nxf6+ {[%clk 0:01:59.4]} 16... Qxf6 {[%clk
0:01:02.7]} 17. Nxd5 {[%clk 0:01:59.7]} 17... Qh6 {[%clk 0:00:40.1]} 18. Ne3
{[%clk 0:01:46.7]} 18... Nxd4 {[%clk 0:00:12.9]} 19. Bc3 {[%clk 0:01:46.6]}
19... Bxf4 {[%clk 0:00:12.7]} 20. Rxf4 {[%clk 0:01:46.7]} 20... Qxf4 {[%clk
0:00:13.6]} 21. Qxd4 {[%clk 0:01:45.7]} 21... Qxd4 {[%clk 0:00:13.4]} 22. Bxd4
{[%clk 0:01:46.6]} 22... Rac8 {[%clk 0:00:12.5]} 23. Re1 {[%clk 0:01:40.6]}
23... Rfe8 {[%clk 0:00:09.1]} 24. Bxb6 {[%clk 0:01:37.1]} 24... Re6 {[%clk
0:00:08.6]} 25. Ba5 {[%clk 0:00:53.9]} 25... Rce8 {[%clk 0:00:08]} 26. Bd2
{[%clk 0:00:44.9]} 26... Be4 {[%clk 0:00:07.4]} 27. Bxe4 {[%clk 0:00:42.4]}
27... Rxe4 {[%clk 0:00:08.3]} 28. Nc2 {[%clk 0:00:42.4]} 28... Rxe1+ {[%clk
0:00:06.3]} 29. Nxe1 {[%clk 0:00:43.3]} 29... f6 {[%clk 0:00:03.4]} 30. Kf2
{[%clk 0:00:43.5]} 30... Kf7 {[%clk 0:00:03.4]} 31. Nd3 {[%clk 0:00:43]} 31...
Rd8 {[%clk 0:00:01.6]} 32. Ke3 {[%clk 0:00:41.8]} 1-0

[Event "*** Titled Tuesday Blitz"]
[Site "Chess.com"]
[Date "2020.04.21"]
[Round "8"]
[White "Rinas_Oleg"]
[Black "Frogo47"]
[Result "1-0"]
[WhiteElo "2254"]
[BlackElo "2442"]
[TimeControl "180+1"]
[EndTime "11:38:22 PDT"]
[Termination "Rinas_Oleg won by resignation"]

1. e4 {[%clk 0:03:00.9]} 1... c5 {[%clk 0:02:59.3]} 2. Nf3 {[%clk 0:02:59]} 2...
d6 {[%clk 0:02:59.7]} 3. d4 {[%clk 0:02:57.8]} 3... cxd4 {[%clk 0:02:59.7]} 4.
Nxd4 {[%clk 0:02:57.3]} 4... Nf6 {[%clk 0:02:59.8]} 5. Nc3 {[%clk 0:02:56.3]}
5... a6 {[%clk 0:03:00.1]} 6. Bg5 {[%clk 0:02:55.4]} 6... Nbd7 {[%clk
0:02:58.2]} 7. f4 {[%clk 0:02:52.2]} 7... b5 {[%clk 0:02:51.1]} 8. Qf3 {[%clk
0:02:44.5]} 8... Bb7 {[%clk 0:02:50.6]} 9. O-O-O {[%clk 0:02:40.5]} 9... h6
{[%clk 0:02:46.7]} 10. Bxf6 {[%clk 0:02:36.5]} 10... Nxf6 {[%clk 0:02:46.1]} 11.
g4 {[%clk 0:02:31.9]} 11... Rc8 {[%clk 0:02:42.4]} 12. h4 {[%clk 0:02:26]} 12...
b4 {[%clk 0:02:31.2]} 13. Nd5 {[%clk 0:02:23.9]} 13... Qa5 {[%clk 0:02:26.3]}
14. Nxf6+ {[%clk 0:02:14.1]} 14... gxf6 {[%clk 0:02:25.2]} 15. Kb1 {[%clk
0:02:13.4]} 15... e6 {[%clk 0:02:24]} 16. Bg2 {[%clk 0:01:52.7]} 16... Qc7
{[%clk 0:02:20]} 17. Qb3 {[%clk 0:01:41.1]} 17... Be7 {[%clk 0:01:46.9]} 18.
Qxb4 {[%clk 0:01:32.1]} 18... Kf8 {[%clk 0:01:46.3]} 19. Qb3 {[%clk 0:01:23.8]}
19... Rb8 {[%clk 0:01:41.8]} 20. Qxe6 {[%clk 0:01:18.7]} 20... Qb6 {[%clk
0:01:28.2]} 21. Qb3 {[%clk 0:01:06.7]} 21... Qa7 {[%clk 0:01:28.4]} 22. Qe3
{[%clk 0:00:50.4]} 22... Rg8 {[%clk 0:01:21.9]} 23. Ne6+ {[%clk 0:00:48.6]}
23... fxe6 {[%clk 0:01:21.9]} 24. Qxa7 {[%clk 0:00:47.5]} 24... Kf7 {[%clk
0:01:22.8]} 25. g5 {[%clk 0:00:40.9]} 25... Rgc8 {[%clk 0:01:18.7]} 26. gxh6
{[%clk 0:00:30.4]} 26... Kg6 {[%clk 0:01:16.9]} 27. f5+ {[%clk 0:00:26.8]} 27...
Kxh6 {[%clk 0:01:16.9]} 28. Qe3+ {[%clk 0:00:21.4]} 28... Kh7 {[%clk 0:01:15.9]}
29. fxe6 {[%clk 0:00:20.4]} 29... Bc6 {[%clk 0:01:11.3]} 30. Bh3 {[%clk
0:00:17.8]} 30... Bf8 {[%clk 0:01:04.6]} 31. Bf5+ {[%clk 0:00:17.2]} 31... Kh8
{[%clk 0:01:04.2]} 32. Rhg1 {[%clk 0:00:16.1]} 32... Rc7 {[%clk 0:01:03.4]} 33.
h5 {[%clk 0:00:14.7]} 33... Rcb7 {[%clk 0:01:01.7]} 34. b3 {[%clk 0:00:13.3]}
34... a5 {[%clk 0:00:49.6]} 35. h6 {[%clk 0:00:12.6]} 35... a4 {[%clk
0:00:47.7]} 36. Qd4 {[%clk 0:00:09.9]} 1-0

[Event "*** Titled Tuesday Blitz"]
[Site "Chess.com"]
[Date "2020.04.21"]
[Round "8"]
[White "EnergeticHay"]
[Black "littleozy"]
[Result "1-0"]
[WhiteElo "2238"]
[BlackElo "2393"]
[TimeControl "180+1"]
[EndTime "11:38:25 PDT"]
[Termination "EnergeticHay won by resignation"]

1. e4 {[%clk 0:03:00.9]} 1... c6 {[%clk 0:02:59.4]} 2. Nf3 {[%clk 0:03:01]} 2...
d5 {[%clk 0:03:00.3]} 3. Nc3 {[%clk 0:03:01.2]} 3... Nf6 {[%clk 0:03:00.5]} 4.
e5 {[%clk 0:03:00.8]} 4... Ne4 {[%clk 0:03:00.5]} 5. d4 {[%clk 0:02:45.6]} 5...
Nxc3 {[%clk 0:03:00.2]} 6. bxc3 {[%clk 0:02:46.5]} 6... c5 {[%clk 0:03:00.6]} 7.
Bd3 {[%clk 0:02:33.2]} 7... e6 {[%clk 0:02:59.6]} 8. O-O {[%clk 0:02:33]} 8...
Nc6 {[%clk 0:02:59.1]} 9. a4 {[%clk 0:02:31.2]} 9... Be7 {[%clk 0:02:55.6]} 10.
Ba3 {[%clk 0:02:28]} 10... h6 {[%clk 0:02:44.8]} 11. Rb1 {[%clk 0:01:48.6]}
11... c4 {[%clk 0:02:37]} 12. Bxe7 {[%clk 0:01:48.1]} 12... Qxe7 {[%clk
0:02:37.5]} 13. Be2 {[%clk 0:01:48.3]} 13... O-O {[%clk 0:02:36.8]} 14. g3
{[%clk 0:01:20.4]} 14... Qa3 {[%clk 0:02:35.5]} 15. Qd2 {[%clk 0:01:20.1]} 15...
b6 {[%clk 0:02:19.1]} 16. Nh4 {[%clk 0:01:19.4]} 16... f6 {[%clk 0:01:55.7]} 17.
f4 {[%clk 0:01:11]} 17... Bd7 {[%clk 0:01:48]} 18. f5 {[%clk 0:00:54.4]} 18...
fxe5 {[%clk 0:01:43.6]} 19. f6 {[%clk 0:00:53.4]} 19... exd4 {[%clk 0:01:07.5]}
20. fxg7 {[%clk 0:00:23.9]} 20... Rxf1+ {[%clk 0:01:03.1]} 21. Rxf1 {[%clk
0:00:24.8]} 21... Qxc3 {[%clk 0:00:50.6]} 22. Rf8+ {[%clk 0:00:18.9]} 22... Rxf8
{[%clk 0:00:49]} 23. gxf8=Q+ {[%clk 0:00:19.8]} 23... Kxf8 {[%clk 0:00:49.4]}
24. Qxh6+ {[%clk 0:00:20.2]} 24... Ke7 {[%clk 0:00:49.9]} 25. Ng6+ {[%clk
0:00:19]} 25... Kd6 {[%clk 0:00:45.8]} 26. Qf4+ {[%clk 0:00:18.7]} 26... Kc5
{[%clk 0:00:42.2]} 27. Qf8+ {[%clk 0:00:16.8]} 27... Ne7 {[%clk 0:00:34.2]} 28.
Qxe7+ {[%clk 0:00:16.7]} 28... Kc6 {[%clk 0:00:33.8]} 29. Ne5+ {[%clk
0:00:17.2]} 29... Kb7 {[%clk 0:00:31.3]} 30. Qxd7+ {[%clk 0:00:18.1]} 30... Ka6
{[%clk 0:00:30.5]} 31. Qb5+ {[%clk 0:00:17.7]} 31... Kb7 {[%clk 0:00:30.3]} 32.
Qc6+ {[%clk 0:00:17.4]} 32... Ka6 {[%clk 0:00:30.2]} 33. Qc8+ {[%clk 0:00:13.3]}
33... Ka5 {[%clk 0:00:29.9]} 34. Nc6+ {[%clk 0:00:10.5]} 34... Kxa4 {[%clk
0:00:27.3]} 35. Qa6+ {[%clk 0:00:11.1]} 1-0